bitfinex-derivatives/quotes_BNBF0:USTF0_20250303
["timestamp","ask_amount","ask_price","bid_price","bid_amount"]
[1741030450130,8.83276215,581.09,579.54,0.27865338]
[1741030450330,4.15118312,581.13,579.53,0.34510724]
[1741030450331,5.88434273,581.08,579.55,0.27865338]
[1741030450534,0.31658619,581.07,579.56,0.27865338]
[1741030450738,0.31658619,581.07,579.57,0.27865338]
[1741030451034,3.46211586,581.08,579.58,0.27865338]
[1741030451239,1.79944931,581.15,579.59,0.27865338]
[1741030451437,1.79944931,581.15,579.6,0.27865338]
[1741030451637,1.79944931,581.15,579.61,0.27865338]
[1741030451831,1.08611707,581.31,579.62,0.27865338]
[1741030452035,1.7990927,581.14,579.63,0.27865338]
[1741030452338,5.56518718,581.32,579.64,0.27865338]
[1741030452533,1.79902294,581.13,579.65,0.27865338]
[1741030452735,1.79902294,581.13,579.66,0.27865338]
[1741030452931,2.80883634,581.29,579.67,0.27865338]
[1741030453131,1.79901519,581.12,579.68,0.27865338]
[1741030453332,1.33189601,581.3,579.69,0.27865338]
[1741030453533,1.79876722,581.15,579.7,0.27865338]
[1741030453735,1.79876722,581.15,579.71,0.27865338]
[1741030453939,1.377,581.34,579.72,0.27865338]
[1741030454141,1.79874398,581.15,579.73,0.27865338]
[1741030454439,1.377,581.34,579.74,0.27865338]
[1741030454737,1.79865101,581.21,579.75,0.27865338]
[1741030454936,1.377,581.34,579.76,0.27865338]
[1741030455138,1.377,581.34,579.58,1.26291885]
[1741030455139,1.79841089,581.27,579.77,0.27865338]
[1741030455338,1.377,581.34,579.58,1.26291885]
[1741030455339,1.377,581.34,579.78,0.27865338]
[1741030455638,1.79860453,581.26,579.76,1.26291885]
[1741030455933,1.377,581.34,579.77,0.27842012]
[1741030456238,1.79873623,581.25,579.77,0.27842012]
[1741030456432,1.377,581.34,579.78,0.27842012]
[1741030456632,1.79866651,581.24,579.77,0.27842012]
[1741030456833,1.377,581.34,579.78,0.27842012]
[1741030457031,1.377,581.34,579.76,1.26291885]
[1741030457032,0.31658295,581.33,579.8,0.34494653]
[1741030457330,1.79878272,581.23,579.81,0.27852885]
[1741030457533,0.31658504,581.22,579.81,0.27852885]
[1741030457735,2.11539101,581.32,579.81,0.27852885]
[1741030457941,0.31658504,581.31,579.81,0.27852885]
[1741030458240,0.31658504,581.31,579.83,0.34492868]
[1741030458433,2.03954951,581.31,579.84,0.27852885]
[1741030458639,0.31658504,581.3,579.84,0.27852885]
[1741030458831,3.13622781,581.32,579.85,0.2785004]
[1741030459036,3.13622781,581.32,579.86,0.2785004]
[1741030459236,3.13622781,581.32,579.87,0.2785004]
[1741030459437,3.13622781,581.32,579.88,0.2785004]
[1741030459739,1.79880597,581.32,579.89,0.2785004]
[1741030460039,1.79880597,581.32,579.9,0.2785004]
[1741030460238,1.79880597,581.32,579.91,0.2785004]
[1741030460437,1.79880597,581.32,579.92,0.62337555]
[1741030460633,1.79880597,581.32,579.93,0.2785004]
[1741030460840,1.79880597,581.32,579.92,0.34487515]
[1741030460841,1.79880597,581.32,579.94,0.2785004]
[1741030461033,1.79880597,581.32,579.95,0.2785004]
[1741030461234,1.79880597,581.32,579.96,0.62335176]
[1741030461432,1.79880597,581.32,579.97,0.2785004]
[1741030461632,1.79880597,581.32,579.98,0.2785004]
[1741030461840,1.79880597,581.32,579.99,0.2785004]
[1741030462036,1.79880597,581.32,580.0,0.27843983]
[1741030462235,1.79880597,581.32,579.97,0.27843983]
[1741030462533,1.79880597,581.32,579.98,0.27843983]
[1741030462736,1.79880597,581.32,579.99,0.27843983]
[1741030462934,1.79880597,581.32,579.96,0.34485136]
[1741030462935,1.79880597,581.32,580.0,0.27843983]
[1741030463241,3.14880597,581.32,580.01,0.27843983]
[1741030463438,1.35,581.32,580.02,0.27843983]
[1741030463637,1.35,581.32,580.03,0.27843983]
[1741030463837,1.79807017,581.31,580.04,0.27843983]
[1741030464242,1.79807017,581.31,579.97,0.27843983]
[1741030464433,1.79807017,581.31,580.05,0.27843983]
[1741030464740,1.79807017,581.31,580.06,0.27843983]
[1741030464939,1.79807017,581.31,580.07,0.27843983]
[1741030465132,1.79807017,581.31,580.08,0.27843983]
[1741030465336,1.79807017,581.31,580.09,0.27843983]
[1741030465537,1.79807017,581.31,580.1,0.27843983]
[1741030465732,1.79807017,581.31,580.11,0.27843983]
[1741030465934,1.79807017,581.31,580.06,0.27843983]
[1741030466433,0.31650226,581.3,580.06,0.27843983]
[1741030466934,1.35,581.32,580.07,0.27843983]
[1741030467138,1.79821728,581.29,580.08,0.27843983]
[1741030467339,1.79821728,581.29,580.02,0.27843983]
[1741030467641,0.31650364,581.28,580.03,0.27843983]
[1741030467843,0.31650364,581.28,580.02,0.27843983]
[1741030468047,0.31650364,581.28,580.03,0.27843983]
[1741030468249,0.31650364,581.28,580.02,0.27843983]
[1741030468443,0.31650364,581.28,580.03,0.27843983]
[1741030468645,0.31650364,581.28,580.04,0.27843983]
[1741030468846,0.31650364,581.28,580.05,0.27843983]
[1741030469149,0.31650364,581.28,580.06,0.27843983]
[1741030469449,0.31650364,581.28,580.07,0.27843983]
[1741030469645,0.31650364,581.28,580.02,0.27843983]
[1741030469948,0.31650364,581.28,580.03,0.27843983]
[1741030470243,2.11493002,581.27,580.04,0.27843983]
[1741030470448,0.31650364,581.26,580.05,0.27843983]
[1741030470649,1.79842638,581.27,580.06,0.27843983]
[1741030470850,1.79842638,581.27,580.07,0.27843983]
[1741030471051,1.79842638,581.27,580.08,0.27843983]
[1741030471249,1.79842638,581.27,580.09,0.27843983]
[1741030471446,1.79842638,581.27,580.1,0.27843983]
[1741030471647,1.35,581.32,579.99,0.27843983]
[1741030471944,1.35,581.32,580.19,1.26291885]
[1741030472147,1.35,581.32,580.2,0.27843983]
[1741030473046,1.35,581.32,580.21,0.27843983]
[1741030473349,1.35,581.32,580.22,0.27843983]
[1741030473545,1.35,581.32,580.23,0.27843983]
[1741030473748,1.35,581.32,580.24,0.27843983]
[1741030473944,1.35,581.32,580.25,0.27843983]
[1741030474148,1.35,581.32,580.2,0.27843983]
[1741030474445,1.35,581.32,580.21,0.27843983]
[1741030474646,1.35,581.32,580.2,0.27843983]
[1741030475047,1.35,581.32,580.3,1.26291885]
[1741030475251,1.35,581.32,580.31,0.27843983]
[1741030476343,1.35,581.32,580.32,0.27844246]
[1741030476547,0.31649651,581.31,580.31,0.27844246]
[1741030476744,0.31649651,581.31,580.32,0.27844246]
[1741030476945,0.31649651,581.31,580.3,1.26291885]
[1741030477554,0.31649651,581.31,580.0,1.26291885]
[1741030477747,0.31659786,581.3,580.01,0.2785418]
[1741030478152,0.31659786,581.29,580.01,0.2785418]
[1741030478346,0.31659786,581.31,580.01,0.2785418]
[1741030478545,0.31659786,581.3,580.01,0.2785418]
[1741030479146,1.34342931,581.31,580.01,0.2785418]
[1741030479746,0.31654853,581.3,580.01,0.2785418]
[1741030479950,0.31654853,581.29,580.01,0.2785418]
[1741030480146,0.31654853,581.28,580.01,0.2785418]
[1741030480348,0.31654853,581.27,580.02,0.2785418]
[1741030480545,2.03921727,581.3,579.97,0.2785418]
[1741030480744,0.31654853,581.29,579.98,0.2785418]
[1741030481046,8.6846445,581.3,579.96,0.34485136]
[1741030481350,3.13956476,581.29,579.97,0.27855837]
[1741030481550,0.66068295,581.28,579.97,0.27855837]
[1741030481853,0.31661469,581.27,579.97,0.27855837]
[1741030482054,2.11539741,581.27,579.97,0.27855837]
[1741030482348,0.31661469,581.26,579.97,0.27855837]
[1741030482553,3.48332616,581.26,579.97,0.27855837]
[1741030482854,0.31661674,581.25,579.98,0.27856013]
[1741030483055,0.34409194,581.24,579.97,0.27856013]
[1741030483251,0.31661674,581.23,579.98,0.27856013]
[1741030483451,0.31661674,581.23,579.97,0.27856013]
[1741030483654,0.31661674,581.23,579.98,0.27856013]
[1741030483853,0.31661674,581.23,579.97,0.27856013]
[1741030485055,2.14293299,581.22,579.97,0.27856013]
[1741030485256,0.31661674,581.21,579.97,0.27856013]
[1741030485658,0.31661674,581.21,580.0,1.26291885]
[1741030485956,0.31661674,581.21,580.01,0.27856013]
[1741030486551,1.66004605,581.21,580.01,0.27856013]
[1741030486754,0.31661674,581.2,580.01,0.27856013]
[1741030487555,0.31661674,581.2,579.93,0.27856013]
[1741030487755,0.31661674,581.2,579.92,1.26291885]
[1741030487756,0.31661674,581.2,579.94,0.27856013]
[1741030487956,0.31661674,581.19,579.95,0.27856013]
[1741030488155,0.31661674,581.18,579.96,0.27856013]
[1741030488358,0.31661674,581.18,579.97,0.27856013]
[1741030488560,0.31661674,581.18,579.98,0.27856013]
[1741030488760,0.31661674,581.18,579.99,0.27856013]
[1741030488959,1.79879047,581.19,579.92,1.26291885]
[1741030489159,1.79879047,581.19,579.93,0.27848579]
[1741030489359,1.79879047,581.19,579.94,0.27848579]
[1741030489555,0.31655128,581.18,579.95,0.27848579]
[1741030489859,0.31655128,581.18,579.96,0.27848579]
[1741030490161,0.31655128,581.18,579.97,0.27848579]
[1741030490360,0.31655128,581.18,579.93,0.27848579]
[1741030490662,0.31659959,581.17,580.16,1.26291885]
[1741030490863,0.31659959,581.16,580.17,0.27854342]
[1741030491056,1.79873623,581.16,580.17,0.27854342]
[1741030491258,0.31659959,581.15,580.17,0.27854342]
[1741030491659,0.31659959,581.15,580.16,1.26291885]
[1741030492158,0.31659959,581.15,580.17,0.27858523]
[1741030492558,0.31659959,581.15,580.16,1.26291885]
[1741030492960,0.31659959,581.15,580.17,0.27856866]
[1741030493362,0.31659959,581.15,579.85,0.27856866]
[1741030493563,0.31659959,581.15,579.84,1.26291885]
[1741030493761,0.31659959,581.15,579.85,0.27858458]
[1741030494458,3.14238889,581.15,579.85,0.27858458]
[1741030494659,0.31659959,581.14,579.85,0.27858458]
[1741030494859,2.03986675,581.14,579.85,0.27858458]
[1741030495060,0.31659959,581.13,579.85,0.27858458]
[1741030495258,7.66373091,581.13,579.85,0.27858458]
[1741030495558,7.66388217,581.12,579.86,0.278692]
[1741030495764,8.35342733,581.11,579.64,0.278692]
[1741030496063,8.35342733,581.1,579.65,0.278692]
[1741030496263,8.35342733,581.09,579.64,0.278692]
[1741030496465,8.87061946,581.08,579.65,0.278692]
[1741030496665,8.87061946,581.07,579.64,0.278692]
[1741030496866,8.87061946,581.06,579.65,0.278692]
[1741030497060,8.87061946,581.05,579.64,0.278692]
[1741030497262,8.87061946,581.04,579.65,0.278692]
[1741030497466,8.35342733,581.03,579.64,0.278692]
[1741030497663,8.87069335,581.02,579.65,0.278692]
[1741030497864,8.87069335,581.01,579.64,0.278692]
[1741030498063,8.87069335,581.0,579.65,0.278692]
[1741030498370,8.87073845,580.99,579.66,0.278692]
[1741030498663,8.87084474,580.98,579.67,0.27879641]
[1741030498862,8.87084474,580.97,579.38,0.27879641]
[1741030499057,8.87084474,580.96,579.39,0.27879641]
[1741030499259,8.87084474,580.95,579.4,0.27879641]
[1741030499466,8.87084474,580.94,579.41,0.27879641]
[1741030499668,8.87084474,580.93,579.42,0.27879641]
[1741030499866,8.87084474,580.92,579.43,0.27879641]
[1741030500067,8.5539876,580.91,579.37,1.26291885]
[1741030500262,8.87089599,580.9,579.38,0.2788149]
[1741030500463,8.87089599,580.89,579.38,0.2788149]
[1741030500666,9.57861428,580.88,579.38,0.2788149]
[1741030500871,9.57861428,580.87,579.21,0.2788149]
[1741030501068,9.57861428,580.86,579.22,0.2788149]
[1741030501267,9.57861428,580.86,579.21,0.2788149]
[1741030501268,9.57861428,580.85,579.21,0.2788149]
[1741030501468,9.57861428,580.84,579.22,0.2788149]
[1741030501766,1.69973631,580.82,579.23,0.2788149]
[1741030501972,1.69973631,580.79,579.21,0.2788149]
[1741030502170,0.31687607,580.78,579.22,0.2788149]
[1741030502370,1.69973631,580.77,579.23,0.2788149]
[1741030502573,0.31687607,580.76,579.24,0.2788149]
[1741030502773,0.31687607,580.76,579.21,0.2788149]
[1741030503074,2.11775326,580.75,579.22,0.27891338]
[1741030503269,0.31697706,580.74,579.21,0.27891338]
[1741030503665,4.80131653,580.74,579.22,0.27891338]
[1741030503868,4.80131653,580.73,578.81,0.27891338]
[1741030504065,5.89699236,580.72,578.82,0.27891338]
[1741030504269,5.89699236,580.71,578.83,0.27891338]
[1741030504473,2.82042178,580.7,578.8,1.26291885]
[1741030504672,1.64989323,580.7,578.84,0.27883129]
[1741030504872,0.31689323,580.69,578.85,0.27883129]
[1741030505068,0.31689323,580.69,578.86,0.27883129]
[1741030505274,0.31689323,580.69,578.87,0.27883129]
[1741030505474,0.31689323,580.69,578.88,0.27883129]
[1741030505669,0.31689323,580.68,578.89,0.27883129]
[1741030505871,0.31689323,580.67,578.9,0.27883129]
[1741030506077,0.31689323,580.66,578.91,0.27883129]
[1741030506270,8.1717848,580.66,578.92,0.27883129]
[1741030506475,8.34423096,580.65,578.93,0.27883129]
[1741030506674,8.34423096,580.64,578.94,0.27883129]
[1741030506875,7.65432891,580.63,578.95,0.27883129]
[1741030507071,2.82219249,580.62,578.89,1.26291885]
[1741030507376,1.34814993,580.62,578.89,1.26291885]
[1741030507576,0.31689924,580.61,578.9,0.27883676]
[1741030507772,1.34814993,580.62,578.9,0.27883676]
[1741030508076,1.34814993,580.62,578.89,1.26291885]
[1741030508377,1.09688593,580.66,578.9,0.278846]
[1741030508571,5.58122328,580.67,578.88,0.278846]
[1741030508872,8.85919033,580.66,578.89,0.278846]
[1741030509073,9.56729657,580.65,578.9,0.278846]
[1741030509370,9.56729657,580.64,578.91,0.278846]
[1741030509572,8.85919033,580.63,578.92,0.278846]
[1741030509769,8.86045253,580.62,578.93,0.278846]
[1741030509970,8.34294378,580.61,578.94,0.278846]
[1741030510271,8.34273047,580.6,578.95,0.278846]
[1741030510473,8.34273047,580.59,578.96,0.278846]
[1741030510678,2.04210579,580.58,578.97,0.278846]
[1741030510876,0.31697315,580.57,578.98,0.278846]
[1741030511080,1.34814993,580.58,578.99,0.278846]
[1741030511282,1.72455497,580.65,579.0,0.278846]
[1741030511579,1.72455497,580.65,579.01,0.278846]
[1741030511580,0.31691245,580.64,579.01,0.278846]
[1741030511782,0.31691245,580.64,579.02,0.278846]
[1741030511980,4.88183321,580.64,579.03,0.278846]
[1741030512177,10.13250388,580.63,578.66,0.278846]
[1741030512377,8.33111401,580.62,578.71,1.26291885]
[1741030512577,8.84868787,580.61,578.72,0.278846]
[1741030512784,8.84868787,580.6,578.73,0.278846]
[1741030513083,8.53177542,580.59,578.71,1.26291885]
[1741030513276,8.84881252,580.58,578.72,0.27897294]
[1741030513482,8.84881252,580.57,578.73,0.27897294]
[1741030513783,8.84881252,580.56,578.74,0.27897294]
[1741030514084,12.4952884,580.55,578.75,0.27897294]
[1741030514284,8.84883831,580.54,578.76,0.27897294]
[1741030514583,4.16404974,580.55,578.77,0.27897375]
[1741030514584,8.84883937,580.53,578.77,0.27897375]
[1741030514787,8.33123972,580.52,578.78,0.27897375]
[1741030515084,5.89366337,580.51,578.79,0.27897375]
[1741030515284,7.63640688,580.5,578.8,0.27897375]
[1741030515485,8.32663293,580.49,578.6,0.27897375]
[1741030515684,3.47389833,580.5,578.61,0.27897375]
[1741030515685,8.32663293,580.48,578.61,0.27897375]
[1741030515881,8.01235678,580.47,578.59,1.26291885]
[1741030516087,8.32942593,580.46,578.6,0.27901136]
[1741030516285,8.32943112,580.45,578.6,0.27901136]
[1741030516486,7.63918766,580.44,578.6,0.27901136]
[1741030516686,5.57936781,580.43,578.6,0.27901136]
[1741030516883,2.81838595,580.42,578.6,0.27901136]
[1741030517082,1.33611474,580.43,578.61,0.27901136]
[1741030517388,1.33611474,580.43,578.62,0.27901136]
[1741030517686,3.06121532,580.43,578.64,0.34563804]
[1741030517883,4.0963313,580.51,578.65,0.27901136]
[1741030518186,1.80176293,580.42,578.66,0.27901136]
[1741030518386,2.06968169,580.49,578.67,0.27901136]
[1741030518586,0.34453651,580.49,578.68,0.27901136]
[1741030518987,0.34453651,580.49,578.69,0.27901136]
[1741030519287,0.31693427,580.48,578.7,0.27901136]
[1741030519485,0.31693427,580.48,578.71,0.27901136]
[1741030519686,0.31693427,580.48,578.72,0.27901136]
[1741030519885,0.31693427,580.48,578.73,0.27901136]
[1741030520085,0.31693427,580.48,578.74,0.27901136]
[1741030520281,0.31693427,580.48,578.75,0.27901136]
[1741030520583,0.34453651,580.49,578.64,0.34563804]
[1741030520782,0.31700584,580.48,578.65,0.27894197]
[1741030520986,0.31700584,580.48,578.66,0.27894197]
[1741030521182,2.11867549,580.48,578.67,0.27894197]
[1741030521380,0.31700584,580.47,578.69,0.34560818]
[1741030521581,0.31700584,580.47,578.7,0.27894197]
[1741030521781,0.31700584,580.47,578.72,0.34559026]
[1741030521982,0.31700584,580.47,578.73,0.27894197]
[1741030522181,0.31700584,580.47,578.72,0.34559026]
[1741030522182,8.15024282,580.47,578.74,0.27894197]
[1741030522382,8.84025988,580.46,578.75,0.27894197]
[1741030522582,8.84025988,580.45,578.76,0.27894197]
[1741030522788,8.84025988,580.44,578.77,0.27894197]
[1741030522984,8.32263851,580.43,578.78,0.27894197]
[1741030523185,7.63262145,580.42,578.79,0.62449044]
[1741030523488,5.89077239,580.41,578.8,0.27894197]
[1741030523681,5.89077239,580.4,578.79,0.34554847]
[1741030523888,1.33097516,580.4,578.8,0.27891638]
[1741030524485,1.72499142,580.47,578.8,0.27891638]
[1741030524689,1.72499142,580.47,578.81,0.34553653]
[1741030524985,0.3170357,580.46,578.82,0.27891638]
[1741030525690,1.40327247,580.46,578.82,0.27891638]
[1741030525885,0.3170357,580.45,578.83,0.62444097]
[1741030526082,4.80348892,580.45,578.84,0.27891638]
[1741030526283,8.8358206,580.44,578.85,0.34551265]
[1741030526486,8.83325478,580.43,578.86,0.27891638]
[1741030526689,8.31558656,580.42,578.86,0.27891638]
[1741030526890,8.31558656,580.41,578.86,0.27891638]
[1741030527088,8.31562411,580.4,578.87,0.27900802]
[1741030527390,8.31720108,580.39,578.88,0.27900802]
[1741030527586,8.31720108,580.38,578.86,0.27900802]
[1741030527791,8.31720108,580.37,578.86,0.27900802]
[1741030527991,7.62844614,580.36,578.86,0.27900802]
[1741030528191,8.83645575,580.35,578.86,0.27900802]
[1741030528394,8.31868806,580.34,578.86,0.27900802]
[1741030528587,8.31868806,580.33,578.86,0.27900802]
[1741030528788,4.90904108,580.38,578.86,0.27900802]
[1741030528789,8.31868806,580.32,578.86,0.27900802]
[1741030528983,8.83648133,580.31,578.86,0.27900802]
[1741030529182,8.83648133,580.3,578.86,0.27900802]
[1741030529385,8.83648133,580.29,578.86,0.27900802]
[1741030529588,10.51507541,580.28,578.86,0.27900802]
[1741030529790,8.83648133,580.27,578.86,0.27900802]
[1741030529989,8.83648133,580.26,578.86,0.27900802]
[1741030530183,10.51507541,580.25,578.86,0.27900802]
[1741030530387,1.67859408,580.23,578.86,0.27900802]
[1741030530687,1.67859408,580.17,578.86,0.27900802]
[1741030530891,0.31707325,580.16,578.86,0.27900802]
[1741030531090,0.31707325,580.2,578.86,0.27900802]
[1741030531290,0.31707325,580.19,578.85,0.34551265]
[1741030531488,1.67859408,580.05,578.85,0.34551265]
[1741030531691,1.67859408,580.03,578.86,0.27926335]
[1741030531888,0.31707325,580.02,578.86,0.27926335]
[1741030532085,0.31707325,580.01,578.86,0.27926335]
[1741030532288,0.31707325,580.02,578.86,0.27926335]
[1741030532491,0.31707325,580.01,578.86,0.27926335]
[1741030532694,0.31707325,580.0,578.86,0.27926335]
[1741030532892,0.31707325,579.99,578.86,0.27926335]
[1741030533088,0.31707325,579.98,578.86,0.27926335]
[1741030533296,0.31707325,579.97,578.86,0.27926335]
[1741030533593,1.80254843,580.0,578.86,0.27926335]
[1741030535289,1.80254843,580.0,578.87,0.27907272]
[1741030535590,1.80254843,580.0,578.85,0.34551265]
[1741030535591,1.80254843,580.0,578.88,0.27907272]
[1741030535792,1.80254843,580.0,578.89,0.27907272]
[1741030535989,1.80254843,580.0,578.9,0.27907272]
[1741030536193,1.80254843,580.0,578.86,0.27907272]
[1741030536397,1.80254843,580.0,578.87,0.27907272]
[1741030536595,1.80254843,580.0,578.86,0.27907272]
[1741030536894,1.80254843,580.0,578.87,0.27910195]
[1741030537191,1.80254843,580.0,578.85,0.34551265]
[1741030537192,1.80254843,580.0,578.88,0.27910195]
[1741030537397,1.80254843,580.0,578.85,0.34551265]
[1741030537398,1.80254843,580.0,578.86,0.27910195]
[1741030537597,1.80254843,580.0,578.87,0.27910195]
[1741030537891,1.80254843,580.0,578.88,0.27910195]
[1741030538095,1.451,580.38,578.85,0.34551265]
[1741030538096,1.451,580.38,578.86,0.27910195]
[1741030538295,1.80197285,580.01,578.85,0.34551265]
[1741030538491,7.309802,580.3,578.86,0.27901837]
[1741030538696,3.65790294,580.29,578.86,0.27901837]
[1741030538897,1.80257177,580.0,578.86,0.27901837]
[1741030539089,8.00016448,580.28,578.86,0.27901837]
[1741030539291,1.80223726,579.99,578.86,0.27901837]
[1741030539699,8.51708579,580.25,578.86,0.27901837]
[1741030539899,1.80221393,579.98,578.87,0.27909586]
[1741030540198,1.80221393,579.98,578.85,0.34551265]
[1741030540199,7.99855834,580.23,578.88,0.27909586]
[1741030540400,1.80215948,579.97,578.86,0.27909586]
[1741030540700,3.45317799,580.23,578.85,0.34551265]
[1741030540701,5.57317215,580.21,578.87,0.27909586]
[1741030540899,1.80217504,579.96,578.88,0.27909586]
[1741030541103,5.88866355,580.2,578.85,0.34551265]
[1741030541104,2.81006148,580.19,578.89,0.27909586]
[1741030541305,0.31713248,580.18,578.86,0.27909586]
[1741030541604,0.31713248,580.19,578.87,0.27909586]
[1741030541912,1.80172406,580.17,578.88,0.27901905]
[1741030542104,1.80172406,580.17,578.86,0.27901905]
[1741030542309,1.80172406,580.17,578.85,0.34551265]
[1741030542310,1.80172406,580.17,578.87,0.27901905]
[1741030542609,1.80172406,580.17,578.88,0.27901905]
[1741030542809,1.80172406,580.17,578.86,0.27901905]
[1741030543009,1.80172406,580.17,578.85,0.34551265]
[1741030543208,1.80172406,580.17,578.86,0.27900428]
[1741030543906,1.80172406,580.17,578.85,0.34551265]
[1741030543907,0.31708275,580.16,578.87,0.27900428]
[1741030544106,0.31708275,580.16,578.88,0.27900428]
[1741030544314,1.80172406,580.17,578.89,0.27900428]
[1741030544719,1.80172406,580.17,578.9,0.27900428]
[1741030544914,1.80172406,580.17,578.91,0.27900428]
[1741030545113,1.80172406,580.17,578.92,0.27900428]
[1741030545312,1.80172406,580.17,578.93,0.27900428]
[1741030545517,1.80172406,580.17,578.94,0.27900428]
[1741030545717,1.80172406,580.17,578.95,0.27900428]
[1741030545918,0.34453651,580.49,578.96,0.27900428]
[1741030546119,1.80142095,580.28,578.97,0.62444532]
[1741030546317,1.80142095,580.28,578.98,0.27900428]
[1741030547321,1.41911559,580.27,578.98,1.54192313]
[1741030547521,0.31711559,580.26,578.99,0.27900428]
[1741030547818,0.31715092,580.25,579.0,0.27908464]
[1741030548023,1.80178625,580.25,578.99,0.27908464]
[1741030548225,0.31713849,580.24,579.0,0.27908464]
[1741030548424,1.7259177,580.24,579.01,0.27908464]
[1741030548623,0.34469089,580.23,579.02,0.27908464]
[1741030548924,0.31708572,580.22,579.03,0.27908464]
[1741030549224,0.34469089,580.23,578.98,1.26291885]
[1741030549419,0.31709227,580.22,578.99,0.27902663]
[1741030549618,0.34470278,580.21,578.99,0.27902663]
[1741030549821,0.31709227,580.2,578.99,0.27902663]
[1741030550222,1.51109227,580.2,578.99,0.27902663]
[1741030550417,0.31709227,580.19,578.98,0.27902663]
[1741030550622,0.31709227,580.19,578.99,0.27902663]
[1741030550827,0.3447206,580.18,578.98,0.27902663]
[1741030551021,0.31713988,580.17,578.99,0.27907363]
[1741030551215,0.31713988,580.17,579.0,0.27907363]
[1741030551416,2.1465535,580.18,578.97,0.34544104]
[1741030551417,2.1465535,580.18,579.01,0.27907363]
[1741030551617,2.1465535,580.18,579.02,0.27907363]
[1741030551824,2.1465535,580.18,579.03,0.27907363]
[1741030552022,2.1465535,580.18,578.97,0.34544104]
[1741030552023,2.1465535,580.18,579.04,0.27907363]
[1741030552221,2.1465535,580.18,578.98,0.27907363]
[1741030552428,0.31713863,580.17,578.98,0.27907363]
[1741030553020,2.04319556,580.17,579.05,1.26291885]
[1741030553329,0.31713863,580.16,579.06,0.27907363]
[1741030554121,1.80193397,580.15,579.06,0.27907363]
[1741030554321,0.31713863,580.14,579.06,0.27907363]
[1741030555221,3.13429572,580.14,579.06,0.27907363]
[1741030555426,0.34475625,580.12,579.06,0.27907363]
[1741030555627,0.34475625,580.12,578.93,1.26291885]
[1741030555829,0.31721503,580.11,578.94,0.2791474]
[1741030556221,0.34475625,580.12,578.94,0.2791474]
[1741030557427,0.34475625,580.12,578.68,0.2791474]
[1741030557622,0.34475625,580.12,578.69,0.2791474]
[1741030557821,0.34475625,580.12,578.7,0.2791474]
[1741030558027,0.34475625,580.12,578.71,0.2791474]
[1741030558224,0.34475625,580.12,578.72,0.2791474]
[1741030558425,0.31723459,580.11,578.73,0.2791474]
[1741030558622,0.34477408,580.09,578.68,0.2791474]
[1741030558827,0.34477408,580.09,578.69,0.2791474]
[1741030559028,0.31723873,580.08,578.7,0.2791474]
[1741030559228,0.31723873,580.08,578.71,0.2791474]
[1741030559426,0.31723873,580.08,578.68,0.2791474]
[1741030559623,0.34477408,580.09,578.69,0.2791474]
[1741030559826,0.34479191,580.06,578.68,0.2791474]
[1741030560130,0.31726415,580.05,578.69,0.2791474]
[1741030560325,0.34480975,580.03,578.65,0.2791474]
[1741030560528,0.31726415,580.02,578.65,0.2791474]
[1741030560732,0.34482758,580.0,578.65,0.2791474]
[1741030560929,0.31726415,579.99,578.65,0.2791474]
[1741030561833,0.31726415,579.99,578.74,1.26291885]
[1741030562132,0.31726415,579.99,578.75,0.2791474]
[1741030562335,0.31726415,579.98,578.75,0.2791474]
[1741030562627,1.68415503,579.96,578.74,1.26291885]
[1741030562829,1.68415503,579.89,578.74,1.26291885]
[1741030563034,1.68415503,579.86,578.74,1.26291885]
[1741030563235,2.00165035,579.85,578.74,1.26291885]
[1741030563430,2.00165035,579.84,578.74,1.26291885]
[1741030563640,2.00165035,579.83,578.74,1.26291885]
[1741030563833,0.31749532,579.82,578.74,1.26291885]
[1741030564035,0.31749532,579.82,578.6,1.54015125]
[1741030564036,1.67905038,579.7,578.29,1.26291885]
[1741030564232,1.9965457,579.69,578.3,0.27951692]
[1741030564436,1.9965457,579.68,578.3,0.27951692]
[1741030564735,0.31749532,579.67,578.3,0.27951692]
[1741030564942,1.67905038,579.63,578.29,1.26291885]
[1741030565139,1.67905038,579.58,578.29,1.26291885]
[1741030565436,1.67905038,579.53,578.29,1.26291885]
[1741030565631,0.31749532,579.52,578.29,1.26291885]
[1741030565836,0.31749532,579.53,578.29,1.26291885]
[1741030566033,0.31749532,579.52,578.29,1.26291885]
[1741030566233,1.67606076,579.53,578.29,1.26291885]
[1741030566533,1.67606076,579.5,578.29,1.26291885]
[1741030566737,1.67606076,579.46,577.84,1.26291885]
[1741030567040,0.31749532,579.45,577.85,0.2796516]
[1741030567337,1.67606076,579.41,577.85,0.2796516]
[1741030567537,0.31749532,579.4,577.85,0.2796516]
[1741030568137,0.31749532,579.41,577.85,0.2796516]
[1741030568338,0.31749532,579.4,577.85,0.2796516]
[1741030568537,8.52925816,579.43,577.85,0.2796516]
[1741030568538,8.84675348,579.42,577.85,0.2796516]
[1741030568731,8.32824305,579.41,577.85,0.2796516]
[1741030568937,8.32824305,579.4,577.85,0.2796516]
[1741030569137,8.84691344,579.39,577.85,0.2796516]
[1741030569336,8.84691344,579.38,577.85,0.2796516]